Cogmind - Beta 9.4 --- EXPLORER MODE // 2020.03.01 @ 16:03:23 Player: WESDADDY Result: Destroyed by as-36215 with Assembled Rifle Performance ------------- Evolutions (0) 0 Regions Visited (3) 600 Robots Destroyed (29) 145 Value Destroyed (738) 738 Prototype IDs (4) 80 Alien Tech Used (0) 0 Bonus (75) 75 TOTAL SCORE: 1638 Bonus ------- Follower Combat Kills 127 Friendly Fire -52 Cogmind --------- Core Integrity 0/250 Matter 295/300 Energy 100/100 System Corruption 3% Temperature Cool (0) Movement Core (300) Ox5 Location -10/Exiles Parts ------- > --- POWER (1) -------- (None) > --- PROPULSION (2) --- (None) > --- UTILITY (3) ------ Improved Heat Sink Large Storage Unit Core Shielding > --- WEAPON (2) ------- (None) > --- INVENTORY (10) --- Improved Ion Engine Light Fission Core Experimental Sensor Array Power Shielding Weapon Shielding Particle Gun Light Assault Rifle Heavy Assault Rifle Heavy Assault Rifle Mining Claw Peak State ------------ > --- POWER ------------ Light Nuclear Core > --- PROPULSION ------- Aluminum Leg Aluminum Leg > --- UTILITY ---------- Improved Heat Sink Large Storage Unit Core Shielding > --- WEAPON ----------- Beam Cannon Beam Cannon > --- INVENTORY -------- Improved Ion Engine Light Fission Core Experimental Sensor Array Power Shielding Weapon Shielding Particle Gun Light Assault Rifle Heavy Assault Rifle Heavy Assault Rifle Mining Claw [Rating: 14] Favorites ----------- Power Ion Engine Engine Ion Engine Power Core Light Nuclear Core Propulsion Aluminum Leg Leg Aluminum Leg Utility Core Shielding Device Improved Heat Sink Storage Large Storage Unit Processor Targeting Computer Protection Core Shielding Weapon Beam Cannon Energy Gun EM Pulse Gun Energy Cannon Beam Cannon Ballistic Gun Light Assault Rifle Ballistic Cannon Light Cannon Build | -11 -10 -10 -10 ------- Run | Scr Mat Min Exi Slots Evolved 1 | . 1 . . Power . | . . . . Propulsion . | . . . . Utility 1 | . 1 . . Weapon . | . . . . Parts Attached 31 | 7 20 4 . Power 3 | 1 1 1 . Engine 2 | 1 1 . . Core 1 | . . 1 . Reactor . | . . . . Propulsion 11 | 2 7 2 . Treads . | . . . . Leg 11 | 2 7 2 . Wheel . | . . . . Hover . | . . . . Flight . | . . . . Utility 6 | 2 3 1 . Device 1 | . . 1 . Storage 2 | . 2 . . Processor 2 | 1 1 . . Hackware . | . . . . Protection 1 | 1 . . . Artifact . | . . . . Weapon 11 | 2 9 . . Energy Gun 4 | 1 3 . . Energy Cannon 3 | . 3 . . Ballistic Gun 2 | 1 1 . . Ballistic Cannon 2 | . 2 . . Launcher . | . . . . Special Weapon . | . . . . Impact Weapon . | . . . . Slashing Weapon . | . . . . Piercing Weapon . | . . . . Special Melee Weapon . | . . . . Unidentified Prototypes . | . . . . Parts Lost 5 | . . . 5 Power 1 | . . . 1 Propulsion 2 | . . . 2 Utility . | . . . . Weapon 2 | . . . 2 Highest Loss Streak 5 | . . . 5 Average Slot Usage (%) 98 | . 97 100 98 Engine 5 | . 12 . . Core 6 | . . 11 11 Leg 24 | . 24 25 24 Device 6 | . . 11 12 Storage 11 | . 10 12 12 Processor 5 | . 12 . . Protection 12 | . 12 12 12 Energy Gun 2 | . 4 . . Energy Cannon 19 | . 14 25 24 Ballistic Gun 1 | . 2 . . Ballistic Cannon 1 | . 2 . . Naked Turns . | . . . . Heaviest Build 29 | 9 28 29 29 Greatest Support 20 | 20 20 20 20 Greatest Overweight (x) 5 | 2 5 1 5 Average Overweight (x) . | . . 1 1 Largest Inventory Capacity 10 | 4 10 10 10 Average Capacity 9 | 4 8 10 10 Most Carried 10 | 4 9 10 10 Average Carried 8 | 2 6 9 9 Final Capacity 10 | 4 10 10 10 Final Carried 10 | 3 8 10 10 Class Distribution -------------------- 100% | Hacker-Mutant Dominant Class ---------------- Hacker-Mutant | -10/Materials Hacker-Mutant | -10/Mines Hacker-Mutant | -10/Exiles Resources | -11 -10 -10 -10 ----------- Run | Scr Mat Min Exi Matter Collected 641 | 153 448 40 . Remotely . | . . . . Salvage Created 861 | . 640 221 . Parts 58 | . 46 12 . Haulers Intercepted . | . . . . Recyclers Shooed . | . . . . Parts Field Recycled . | . . . . Retrieved Matter . | . . . . Parts Self-Destructed . | . . . . Prevented . | . . . . Kills | -11 -10 -10 -10 ------- Run | Scr Mat Min Exi Combat Hostiles Destroyed 20 | . 13 7 . Guns 5 | . 5 . . Cannons 13 | . 6 7 . AOE 2 | . 2 . . Classes Destroyed 5 | . 5 . . Worker 3 | . 3 . . Builder 3 | . 3 . . Watcher 3 | . 3 . . Swarmer 4 | . 1 3 . Grunt 16 | . 12 4 . Best Kill Streak 8 | . 8 2 . Combat Bots Only 4 | . 4 2 . Max Kills in Single Turn 3 | . 3 1 . Gunslinging . | . . . . Exploded 1 | . 1 . . Melee . | . . . . Uniques/NPCs Destroyed . | . . . . Combat | -11 -10 -10 -10 -------- Run | Scr Mat Min Exi Damage Taken 1054 | . 397 99 558 Core 256 | . 56 18 182 Absorbed by Shields . | . . . . Core Remaining (%) 100 | 100 . . . Volleys Fired 91 | . 70 14 7 Largest 2 | . 2 2 2 Hottest 120 | . 120 120 120 Shots Fired 182 | . 140 28 14 Gun 66 | . 66 . . Cannon 116 | . 74 28 14 Launcher . | . . . . Special . | . . . . Kinetic 59 | . 59 . . Thermal 104 | . 62 28 14 Explosive . | . . . . Electromagnetic 19 | . 19 . . Robot Hit Streak 32 | . 32 11 12 Robot Miss Streak 3 | . 2 3 . Penetration Max . | . . . . Secondary Targets 1 | . 1 . . Max Gunslinging Chain 1 | . 1 . . Shots Hit Robots 112 | . 88 20 4 Core Hits 48 | . 38 9 1 Critical Hits . | . . . . Critical Kills . | . . . . Critical Parts Destroyed . | . . . . Melee Attacks . | . . . . Impact . | . . . . Slashing . | . . . . Piercing . | . . . . Sneak Attacks . | . . . . Combat Hostiles . | . . . . Follow-up Attacks . | . . . . Damage Inflicted 1813 | . 1387 355 71 Guns 580 | . 580 . . Cannons 932 | . 506 355 71 Explosions 288 | . 288 . . Melee . | . . . . Ramming 13 | . 13 . . Kinetic 607 | . 607 . . Thermal 980 | . 554 355 71 Explosive . | . . . . Electromagnetic 213 | . 213 . . Impact . | . . . . Slashing . | . . . . Piercing . | . . . . Highest Corruption 3 | . 2 2 3 Average Corruption 1 | . 1 2 2 Corruption Purged . | . . . . Effects 35 | . 15 12 8 Message Errors 11 | . 3 4 4 Matter Fused 1 | . . . 1 Heat Flow Errors 4 | . 2 1 1 Energy Discharges 5 | . 1 2 2 Data Loss (minor) 9 | . 5 4 . Targeting Errors 5 | . 4 1 . Overload Shots . | . . . . Overflow Damage . | . . . . Projectiles . | . . . . Explosions . | . . . . Melee . | . . . . Knockbacks 8 | . 8 . . Impact . | . . . . Kinetic 8 | . 8 . . Secondary . | . . . . Self-Inflicted Damage 41 | . 41 . . Shots 2 | . 2 . . Rammed 3 | . 3 . . Targets Rammed 4 | . 4 . . Kicked 1 | . 1 . . Crushed . | . . . . Highest Temperature 240 | . 240 204 96 Average Temperature 73 | . 76 69 45 Received Heat Transfer 373 | . 270 63 40 Siege Activations . | . . . . Robots Corrupted . | . . . . Combat Hostiles . | . . . . Parts Fried . | . . . . Impact Corruptions . | . . . . Robots Melted . | . . . . Combat Hostiles . | . . . . Parts Melted 2 | . 1 1 . Heat Transferred 1829 | . 941 740 148 Parts Sabotaged . | . . . . Parts Stolen . | . . . . Parts Stripped . | . . . . Power Chain Reactions 2 | . 2 . . Missiles Intercepted . | . . . . Alert | -11 -10 -10 -10 ------- Run | Scr Mat Min Exi Peak Influence 189 | . 189 133 . Average Influence 37 | . 34 42 . Maximum Alert Level . | . . . . Low Security (%) 100 | 100 100 100 . Level 1 . | . . . . Level 2 . | . . . . Level 3 . | . . . . Level 4 . | . . . . Level 5 . | . . . . High Security . | . . . . Max Security . | . . . . Squads Dispatched 1 | . 1 . . Investigation 1 | . 1 . . Extermination . | . . . . Reinforcement . | . . . . Assault . | . . . . Garrison . | . . . . Intercept . | . . . . Construction Impeded . | . . . . Haulers Reinforced . | . . . . Stealth | -11 -10 -10 -10 --------- Run | Scr Mat Min Exi Distress Signals 1 | . 1 . . Communications Jammed . | . . . . Distress Signals . | . . . . Times Spotted 41 | . 22 11 8 Peak Tracking Total 9 | . 5 2 9 Tactical Retreats 4 | . 4 . . Traps | -11 -10 -10 -10 ------- Run | Scr Mat Min Exi Traps Triggered 4 | . 4 . . Indirectly . | . . . . Trap Hack Attempts . | . . . . Triggered . | . . . . Disarmed 6 | . 6 . . Reprogrammed . | . . . . Reused . | . . . . Traps Extracted . | . . . . Installed . | . . . . Triggered . | . . . . Machines | -11 -10 -10 -10 ---------- Run | Scr Mat Min Exi Machines Disabled 1 | . 1 . . Max in Single Turn 1 | . 1 . . Machines Sabotaged . | . . . . Garrisons Compromised . | . . . . Overloaded Fab Kills . | . . . . Fab Network Shutdowns . | . . . . Hacking | -11 -10 -10 -10 --------- Run | Scr Mat Min Exi Machines Accessed 8 | . 7 . 1 Terminals 5 | . 5 . . Fabricators . | . . . . Repair Stations . | . . . . Recycling Units 2 | . 2 . . Scanalyzers . | . . . . Garrison Access . | . . . . Total Hacks 24 | . 15 . 9 Successful 22 | . 13 . 9 Failed 2 | . 2 . . Catastrophic . | . . . . Database Lockouts . | . . . . Manual 3 | . 3 . . Terminals 13 | . 13 . . Fabricators . | . . . . Repair Stations . | . . . . Recycling Units 2 | . 2 . . Scanalyzers . | . . . . Garrison Access . | . . . . Terminal Hacks 20 | . 11 . 9 Record 11 | . 2 . 9 Robot Analysis 1 | . 1 . . Prototype ID Bank 2 | . 2 . . Alert Level 1 | . 1 . . Disarm Traps 1 | . 1 . . Maintenance Status 1 | . 1 . . Hauler Manifests 1 | . 1 . . Registered Prototypes 1 | . 1 . . Zone Layout 1 | . 1 . . Fabricator Hacks . | . . . . Repair Station Hacks . | . . . . Recycling Unit Hacks 2 | . 2 . . Report Inventory 2 | . 2 . . Scanalyzer . | . . . . Garrison Access Hacks . | . . . . Unauthorized Hacks . | . . . . Terminals . | . . . . Fabricators . | . . . . Repair Stations . | . . . . Recycling Units . | . . . . Scanalyzers . | . . . . Garrison Access . | . . . . Data Cores Recovered . | . . . . Used . | . . . . Hacking Detections 4 | . 4 . . Full Trace Events 1 | . 1 . . Feedback Events 1 | . 1 . . Corruption 1 | . 1 . . Feedback Blocked . | . . . . Robot Schematics Acquired . | . . . . Robots Built . | . . . . Matter . | . . . . Time . | . . . . Total Robot Build Rating . | . . . . Part Schematics Acquired . | . . . . Parts Built . | . . . . Matter . | . . . . Time . | . . . . Total Part Build Rating . | . . . . Parts Repaired . | . . . . Time . | . . . . Parts Recycled . | . . . . Recycled Matter . | . . . . Retrieved Matter . | . . . . Retrieved Components . | . . . . Parts Scanalyzed . | . . . . Part Schematics Acquired . | . . . . Parts Damaged . | . . . . Bothacking | -11 -10 -10 -10 ------------ Run | Scr Mat Min Exi Used RIF Installer . | . . . . Robots Hacked . | . . . . Non-combat . | . . . . Combat . | . . . . Robot Hacks Applied . | . . . . Relay Couplers Released . | . . . . Robots Rewired . | . . . . Allies Hacked . | . . . . Hacks Repelled . | . . . . Allies | -11 -10 -10 -10 -------- Run | Scr Mat Min Exi Total Allies 3 | . . 3 . Largest Group 3 | . . 3 . Highest-Rated Group 40 | . . 40 . Highest-Rated Ally 16 | . . 16 . Total Orders . | . . . . Ally Attacks 24 | . . 24 . Total Damage 259 | . . 259 . Kills 5 | . . 5 . Allies Corrupted . | . . . . Allies Melted . | . . . . Intel | -11 -10 -10 -10 ------- Run | Scr Mat Min Exi Robot Analysis Total 1 | . 1 . . Derelict Logs Recovered 1 | . . 1 . Drone Launches . | . . . . Drone Recoveries . | . . . . Exploration | -11 -10 -10 -10 ------------- Run | Scr Mat Min Exi Turns Passed 4454 | 70 2121 1480 783 Spaces Moved 2823 | 59 1324 936 504 Core 51 | 41 6 . 4 Treads . | . . . . Legs 2772 | 18 1318 936 500 Wheels . | . . . . Hover . | . . . . Flight . | . . . . Fastest Speed 50 | 50 120 150 150 Average Speed 144 | 93 139 150 151 Slowest Speed 300 | 150 300 150 300 Overloaded Moves . | . . . . Propulsion Burnouts . | . . . . Robots Hopped . | . . . . Cave-ins Triggered . | . . . . Exploration Rate (%) 64 | 3 90 91 72 Regions Visited 3 Branch Regions 2 Pre-discovered Areas 1 | . . 1 . Known Exits Taken 3 | 1 1 1 . Unknown Exits Taken . | . . . . Scrap Searched . | . . . . Spaces Dug . | . . . . Terrain Destroyed 4 | . 4 . . Melee . | . . . . Projectile . | . . . . AOE 4 | . 4 . . Actions | -11 -10 -10 -10 --------- Run | Scr Mat Min Exi Total 3042 | 73 1467 989 513 Wait 34 | . 17 17 . Move 2820 | 58 1323 935 504 Hop . | . . . . Pick Up 38 | 8 19 10 1 Fast Attach 2 | 2 . . . Attach 15 | 5 10 . . Detach 5 | . 5 . . Swap 14 | . 10 4 . Drop 19 | . 9 9 1 Fire 91 | . 70 14 7 Melee . | . . . . Ram . | . . . . Kick 4 | . 4 . . Crush . | . . . . Escape Stasis . | . . . . Rewire . | . . . . Trap . | . . . . Miscellaneous . | . . . . Route ------- -11/Scrapyard -10/Materials (discovered 4 exits: *Mat x3 / *Min) -10/Mines (discovered 3 exits: *Mat x2 / *Exi) -10/Exiles (discovered 1 exit: *Min) History --------- Turn | Location | Event 20 | -11/Scrapyard | Identified exit to Materials 20 | -11/Scrapyard | Discovered exit to Materials (range 16) 71 | -11/Scrapyard | Entered Materials 71 | -10/Materials | Evolved 1 slot: Utility x1 300 | -10/Materials | Build established: Hacker-Mutant 541 | -10/Materials | Identified exit to Mines 541 | -10/Materials | Discovered exit to Mines (range 12) 797 | -10/Materials | Identified exit to Materials 797 | -10/Materials | Discovered exit to Materials (range 13) 890 | -10/Materials | Discovered exit to Materials (range 5) 1735 | -10/Materials | Discovered exit to Materials (range 16) 2192 | -10/Materials | Entered Mines 2328 | -10/Mines | Joined a pair of Derelicts in attacking an 0b10 outpost 2477 | -10/Mines | Found a damaged Exp. Sensor Array with a note attached 2485 | -10/Mines | Found Prototype Device 2673 | -10/Mines | Assisted by bots powering up and referring to "LRC-V3" 2757 | -10/Mines | Learned location of Storage (-8) 3064 | -10/Mines | Discovered exit to Materials (range 6) 3136 | -10/Mines | Deemed a non-threat by the Exiles lab entrance 3138 | -10/Mines | Identified exit to Exiles 3138 | -10/Mines | Discovered exit to Exiles (range 5) 3346 | -10/Mines | Learned 4 Materials zone layouts 3453 | -10/Mines | Discovered exit to Materials (range 8) 3672 | -10/Mines | Entered Exiles 3726 | -10/Exiles | Identified exit to Mines 3726 | -10/Exiles | Discovered exit to Mines (range 15) 3749 | -10/Exiles | Met 8R-AWN 3794 | -10/Exiles | Met EX-HEX 3885 | -10/Exiles | Met EX-DEC 4048 | -10/Exiles | Visited The Gauntlet 4428 | -10/Exiles | Attacked by the Exiles 4437 | -10/Exiles | Core integrity fell below 50% 4450 | -10/Exiles | Core integrity fell below 20% 4455 | -10/Exiles | Destroyed by as-36215 with Assembled Rifle Last Messages --------------- as-80982 suffers critical hit. as-80982 destroyed. Penetrated by HV Slug. HV Slug penetrates Machine. Machine disabled. Penetrated by HV Slug. Aluminum Leg destroyed. Lgt. Nuclear Core destroyed. Penetrated by HV Slug. System corrupted: Matter fused (-10). Aluminum Leg destroyed. HV Slug penetrates Wall. HV Slug penetrates Machine. Machine disabled. HV Slug penetrates Wall. Penetrated by HV Slug. HV Slug penetrates as-26773. as-26773 suffers critical hit. as-26773 destroyed. as-03368 destroyed. Map ----- +----------------------------------------------------+ | ?????????????????????????????????????????????????? | | ?????????????????????????????????????????????????? | | ?????????????????????????????????????????????????? | | ?????????????????????????????????????????????????? | | ?????????? ?????????????????????????????????? | | #????????? ????????????????????????????????? | | #????????" ???????????????????????????????? | | #????????# ??????????????????????????????? | | #????????# ??????????????????????????????? | | #????????#" ???????????????????????????????? | | #????????#" ???????????????????????????????? | | #????????#" "????????????????????????????????? | | #???????##" #?????????????????????????????????? | | #??????##"" #?????????????????????????????????? | | #?######"" #?????????????????????????????????? | | ###""""""" ##????????????????????????????????? | | """"" " "" ##?#############?????????????????? | | " """ " ###;#""""" """##????????????????? | | " " """ """"##???????????????? | | "" " #???????????????? | | """#???????????????? | | "a"#???????????##### | | " "##?????????##" # | | ""###???????#" # | | """""" """#??????##" # | | ######""" @ % "#????### | | ""##????#####""" ##???# | | """##?????????##" ##?## | | """##???????????#"""" ;## | | ""#????????????#"" a g ## | | ###?####?????#"""" #### | | ## ###??"" %% ""#?#"" | | """" #"""##?### | | a ######????? | | a ##?????????? | | " a ##??????????? | | " "" "" ""#???????????? | | ""## ?##""" " " ""; "##???????????? | | ""###?????####""" """##"""""""##????????????? | | """"##??????????###""""#?#########?????????????? | | """#?????????????#####????????????????????????? | | ""##??????????????????????????????????????????? | | """##???????????????????????????????????????????? | | ##????????????????????????????????????????????? | | ##?????????????????????????????????????????????? | | #??????????????????????????????????????????????? | | ##??????????????????????????????????????????????? | | #???????????????????????????????????????????????? | | #???????????????????????????????????????????????? | | #???????????????????????????????????????????????? | +----------------------------------------------------+ Best States ------------- Heat Dissipation 39 Energy Generation 14 Energy Capacity 250 Matter Stores 300 Matter Capacity 300 Sight Range 16 Terrain Scan Density 10 Resistance: KI 35 Resistance: TH 35 Resistance: EX 35 Resistance: EM 35 Resistance: I 35 Resistance: S 35 Resistance: P 35 Core Shielding 20 Evasion (%) 50 Targeting Accuracy 5 Offensive Hacking 20 Item Schematics ----------------- None Robot Schematics ------------------ None Fabricated ------------ Nothing Alien Tech Used ----------------- None Achievements -------------- None Challenges ------------ None Game ------ Seed MassGreatBarrier Manual? 0 Play Time 01:06:54 Cumulative 15.3 hours Start 2020.02.29 @ 19:32:59 End 2020.03.01 @ 16:03:23 Sessions 7 Manual Loads 0 Difficulty Explorer Special Mode None Game No. 23 Rogue 21 Adventurer 0 Explorer 2 Win Type - Total 0 Types 0/0/0/0/0/0/0 Lore% 4 Gallery% 19 Achievement% 10 Wizard Run 0 Options --------- ASCII 0 Keyboard 1 Movement Arrows Keybinds 0 Fullscreen 1 Font 36/TerminusBold Map View 76x50 Tactical HUD 0 Map Filters NONE Filters NONE Steam 1 RUN: 777886af-fcfa-4a0c-94a6-845501dbed73